Cogmind - Beta 9.6 @@@ ROGUE MODE // 2020.07.09 @ 04:09:44 Player: GGOBC-006 Result: Destroyed by G-34 Mercenary with Small Laser Performance ------------- Evolutions (0) 0 Regions Visited (2) 400 Robots Destroyed (36) 180 Value Destroyed (531) 531 Prototype IDs (0) 0 Alien Tech Used (0) 0 Bonus (0) 0 TOTAL SCORE: 1111 Bonus ------- None Cogmind --------- Core Integrity 0/250 Matter 300/300 Energy 250/250 System Corruption 3% Temperature Cool (6) Movement Walking (120) Location -10/Mines Parts ------- > --- POWER (1) -------- Ion Engine > --- PROPULSION (2) --- Aluminum Leg Aluminum Leg > --- UTILITY (2) ------ Small Storage Unit Transport Network Coupler > --- WEAPON (2) ------- Light Assault Rifle Light Assault Rifle > --- INVENTORY (6) ---- Ion Engine Ion Engine Light Ion Engine ECM Suite Light Assault Rifle Light Assault Rifle Peak State ------------ > --- POWER ------------ Ion Engine > --- PROPULSION ------- Wheel Wheel > --- UTILITY ---------- Small Storage Unit Transport Network Coupler > --- WEAPON ----------- Assault Rifle Assault Rifle > --- INVENTORY -------- Ion Engine Ion Engine EM Pulse Gun Light Assault Rifle [Rating: 7] Favorites ----------- Power Ion Engine Engine Ion Engine Propulsion Hover Unit Leg Aluminum Leg Wheel Wheel Hover Unit Hover Unit Utility Small Storage Unit Storage Small Storage Unit Processor Transport Network Coupler Weapon Assault Rifle Energy Gun Particle Gun Ballistic Gun Assault Rifle Build | -11 -10 -10 ------- Run | Scr Mat Min Slots Evolved . | . . . Power . | . . . Propulsion . | . . . Utility . | . . . Weapon . | . . . Parts Attached 24 | 4 11 9 Power 3 | 1 . 2 Engine 3 | 1 . 2 Core . | . . . Reactor . | . . . Propulsion 11 | 2 6 3 Treads . | . . . Leg 5 | . 2 3 Wheel 2 | 2 . . Hover 4 | . 4 . Flight . | . . . Utility 2 | . 2 . Device . | . . . Storage 1 | . 1 . Processor 1 | . 1 . Hackware . | . . . Protection . | . . . Artifact . | . . . Weapon 8 | 1 3 4 Energy Gun 1 | . . 1 Energy Cannon . | . . . Ballistic Gun 7 | 1 3 3 Ballistic Cannon . | . . . Launcher . | . . . Special Weapon . | . . . Impact Weapon . | . . . Slashing Weapon . | . . . Piercing Weapon . | . . . Special Melee Weapon . | . . . Unidentified Prototypes . | . . . Parts Lost 9 | . 4 5 Power . | . . . Propulsion 5 | . 3 2 Utility . | . . . Weapon 4 | . 1 3 Highest Loss Streak 2 | . 2 2 Average Slot Usage (%) 90 | . 92 88 Engine 14 | . 14 14 Leg 5 | . 4 7 Wheel 7 | . 14 . Hover 8 | . 5 11 Storage 14 | . 14 14 Processor 12 | . 11 14 Energy Gun 1 | . . 2 Ballistic Gun 25 | . 26 24 Naked Turns . | . . . Heaviest Build 13 | 6 13 12 Greatest Support 20 | 20 20 20 Greatest Overweight (x) 4 | 1 4 3 Average Overweight (x) . | . . . Largest Inventory Capacity 6 | 4 6 6 Average Capacity 5 | 4 5 6 Most Carried 6 | 4 6 6 Average Carried 5 | 3 5 5 Final Capacity 6 | 4 6 6 Final Carried 6 | 4 6 6 Class Distribution -------------------- 50% | Scavenger-Mutant 49% | Mutant Dominant Class ---------------- Mutant | -10/Materials Scavenger-Mutant | -10/Mines Resources | -11 -10 -10 ----------- Run | Scr Mat Min Matter Collected 871 | 240 457 174 Remotely . | . . . Salvage Created 956 | . 660 296 Parts 78 | . 55 23 Haulers Intercepted 2 | . 2 . Recyclers Shooed . | . . . Parts Field Recycled . | . . . Retrieved Matter . | . . . Parts Self-Destructed . | . . . Prevented . | . . . Kills | -11 -10 -10 ------- Run | Scr Mat Min Combat Hostiles Destroyed 19 | . 11 8 Guns 19 | . 11 8 Classes Destroyed 9 | . 7 2 Worker 10 | . 8 2 Builder 1 | . 1 . Tunneler 1 | . . 1 Hauler 2 | . 2 . Operator 1 | . 1 . Watcher 2 | . 2 . Swarmer 7 | . 5 2 Grunt 11 | . 6 5 Assembled 1 | . . 1 Best Kill Streak 10 | . 10 2 Combat Bots Only 3 | . 3 2 Max Kills in Single Turn 2 | . 2 1 Gunslinging 1 | . 1 . Exploded . | . . . Melee . | . . . Uniques/NPCs Destroyed . | . . . Combat | -11 -10 -10 -------- Run | Scr Mat Min Damage Taken 1079 | . 440 639 Core 259 | . 112 147 Absorbed by Shields . | . . . Core Remaining (%) 100 | 100 . . Volleys Fired 122 | . 74 48 Largest 2 | . 2 2 Hottest 85 | . 40 85 Shots Fired 201 | . 120 81 Gun 201 | . 120 81 Cannon . | . . . Launcher . | . . . Special . | . . . Kinetic 190 | . 120 70 Thermal 11 | . . 11 Explosive . | . . . Electromagnetic . | . . . Robot Hit Streak 17 | . 17 16 Robot Miss Streak 4 | . 3 4 Penetration Max . | . . . Secondary Targets 2 | . 2 . Max Gunslinging Chain 1 | . 1 . Shots Hit Robots 138 | . 84 54 Core Hits 53 | . 35 18 Critical Hits . | . . . Critical Kills . | . . . Critical Parts Destroyed . | . . . Melee Attacks . | . . . Impact . | . . . Slashing . | . . . Piercing . | . . . Sneak Attacks . | . . . Combat Hostiles . | . . . Follow-up Attacks . | . . . Damage Inflicted 1584 | . 1036 548 Guns 1577 | . 1036 541 Cannons . | . . . Explosions . | . . . Melee . | . . . Ramming 7 | . . 7 Kinetic 1465 | . 1036 429 Thermal 112 | . . 112 Explosive . | . . . Electromagnetic . | . . . Impact . | . . . Slashing . | . . . Piercing . | . . . Highest Corruption 3 | . . 3 Average Corruption 2 | . . 2 Corruption Purged . | . . . Effects 3 | . . 3 Data Loss (minor) 1 | . . 1 Targeting Errors 2 | . . 2 Overload Shots . | . . . Overflow Damage . | . . . Projectiles . | . . . Explosions . | . . . Melee . | . . . Knockbacks . | . . . Impact . | . . . Kinetic . | . . . Secondary . | . . . Self-Inflicted Damage 3 | . . 3 Shots . | . . . Rammed 6 | . . 6 Targets Rammed 6 | . . 6 Kicked . | . . . Crushed . | . . . Highest Temperature 132 | . 9 132 Average Temperature 25 | . 2 28 Received Heat Transfer 414 | . 177 237 Siege Activations . | . . . Robots Corrupted . | . . . Combat Hostiles . | . . . Parts Fried . | . . . Impact Corruptions . | . . . Robots Melted . | . . . Combat Hostiles . | . . . Parts Melted 1 | . . 1 Heat Transferred 259 | . . 259 Parts Sabotaged . | . . . Parts Stolen . | . . . Parts Stripped . | . . . Power Chain Reactions . | . . . Missiles Intercepted . | . . . Alert | -11 -10 -10 ------- Run | Scr Mat Min Peak Influence 216 | . 216 101 Average Influence 77 | . 93 65 Maximum Alert Level 1 | . 1 . Low Security (%) 96 | 100 93 100 Level 1 3 | . 6 . Level 2 . | . . . Level 3 . | . . . Level 4 . | . . . Level 5 . | . . . High Security . | . . . Max Security . | . . . Squads Dispatched 2 | . 2 . Investigation . | . . . Extermination . | . . . Reinforcement 2 | . 2 . Assault . | . . . Garrison . | . . . Intercept . | . . . Construction Impeded . | . . . Haulers Reinforced . | . . . Stealth | -11 -10 -10 --------- Run | Scr Mat Min Distress Signals 4 | . 3 1 Communications Jammed . | . . . Distress Signals . | . . . Times Spotted 34 | . 18 16 Peak Tracking Total 5 | . 4 5 Tactical Retreats 1 | . . 1 Traps | -11 -10 -10 ------- Run | Scr Mat Min Traps Triggered . | . . . Indirectly . | . . . Trap Hack Attempts . | . . . Triggered . | . . . Disarmed . | . . . Reprogrammed . | . . . Reused . | . . . Traps Extracted . | . . . Installed . | . . . Triggered . | . . . Machines | -11 -10 -10 ---------- Run | Scr Mat Min Machines Disabled . | . . . Max in Single Turn . | . . . Machines Sabotaged . | . . . Garrisons Compromised . | . . . Overloaded Fab Kills . | . . . Fab Network Shutdowns . | . . . Hacking | -11 -10 -10 --------- Run | Scr Mat Min Machines Accessed 5 | . 5 . Terminals 4 | . 4 . Fabricators . | . . . Repair Stations . | . . . Recycling Units 1 | . 1 . Scanalyzers . | . . . Garrison Access . | . . . Total Hacks 12 | . 12 . Successful 8 | . 8 . Failed 4 | . 4 . Catastrophic . | . . . Database Lockouts . | . . . Manual . | . . . Terminals 9 | . 9 . Fabricators . | . . . Repair Stations . | . . . Recycling Units 3 | . 3 . Scanalyzers . | . . . Garrison Access . | . . . Terminal Hacks 5 | . 5 . Branch Access Points 1 | . 1 . Locate Traps 2 | . 2 . Recall Reinforcements 2 | . 2 . Fabricator Hacks . | . . . Repair Station Hacks . | . . . Recycling Unit Hacks 3 | . 3 . Report Inventory 1 | . 1 . Retrieve Matter 1 | . 1 . Retrieve Components 1 | . 1 . Scanalyzer . | . . . Garrison Access Hacks . | . . . Unauthorized Hacks . | . . . Terminals . | . . . Fabricators . | . . . Repair Stations . | . . . Recycling Units . | . . . Scanalyzers . | . . . Garrison Access . | . . . Data Cores Recovered . | . . . Used . | . . . Hacking Detections 4 | . 4 . Full Trace Events . | . . . Feedback Events . | . . . Feedback Blocked . | . . . Robot Schematics Acquired . | . . . Robots Built . | . . . Matter . | . . . Time . | . . . Total Robot Build Rating . | . . . Part Schematics Acquired . | . . . Parts Built . | . . . Matter . | . . . Time . | . . . Total Part Build Rating . | . . . Parts Repaired . | . . . Time . | . . . Parts Recycled . | . . . Recycled Matter . | . . . Retrieved Matter . | . . . Retrieved Components 1 | . 1 . Parts Scanalyzed . | . . . Part Schematics Acquired . | . . . Parts Damaged . | . . . Bothacking | -11 -10 -10 ------------ Run | Scr Mat Min Used RIF Installer . | . . . Robots Hacked . | . . . Non-combat . | . . . Combat . | . . . Robot Hacks Applied . | . . . Relay Couplers Released . | . . . Robots Rewired . | . . . Allies Hacked . | . . . Hacks Repelled . | . . . Allies | -11 -10 -10 -------- Run | Scr Mat Min Total Allies . | . . . Largest Group . | . . . Highest-Rated Group . | . . . Highest-Rated Ally . | . . . Total Orders . | . . . Ally Attacks . | . . . Total Damage . | . . . Kills . | . . . Allies Corrupted . | . . . Allies Melted . | . . . Intel | -11 -10 -10 ------- Run | Scr Mat Min Robot Analysis Total . | . . . Derelict Logs Recovered 2 | . . 2 Drone Launches . | . . . Drone Recoveries . | . . . Exploration | -11 -10 -10 ------------- Run | Scr Mat Min Turns Passed 1325 | 41 673 611 Spaces Moved 633 | 46 359 228 Core 36 | 26 5 5 Treads . | . . . Legs 137 | . 43 94 Wheels 196 | 20 176 . Hover 264 | . 135 129 Flight . | . . . Fastest Speed 50 | 50 56 56 Average Speed 86 | 64 85 91 Slowest Speed 250 | 100 250 200 Overloaded Moves . | . . . Propulsion Burnouts . | . . . Robots Hopped . | . . . Cave-ins Triggered . | . . . Exploration Rate (%) 37 | 4 58 51 Regions Visited 2 Branch Regions 1 Pre-discovered Areas . | . . . Known Exits Taken 1 | . 1 . Unknown Exits Taken 1 | 1 . . Scrap Searched . | . . . Spaces Dug . | . . . Terrain Destroyed . | . . . Melee . | . . . Projectile . | . . . AOE . | . . . Actions | -11 -10 -10 --------- Run | Scr Mat Min Total 1215 | 55 604 556 Wait 412 | . 152 260 Move 631 | 45 358 228 Hop . | . . . Pick Up 12 | 5 5 2 Fast Attach 14 | 4 7 3 Attach 5 | . 2 3 Detach . | . . . Swap 5 | . 2 3 Drop 8 | 1 4 3 Fire 122 | . 74 48 Melee . | . . . Ram 3 | . . 3 Kick 3 | . . 3 Crush . | . . . Escape Stasis . | . . . Rewire . | . . . Trap . | . . . Miscellaneous . | . . . Route ------- -11/Scrapyard -10/Materials (discovered 2 exits: *Min x2) -10/Mines History --------- Turn | Location | Event 7 | -11/Scrapyard | Discovered new exit (range 15) 42 | -11/Scrapyard | Entered Materials 302 | -10/Materials | Build established: Mutant 379 | -10/Materials | Identified exit to Mines 715 | -10/Materials | Entered Mines 717 | -10/Mines | Learned 4 Materials zone layouts 800 | -10/Mines | Excavation squad dispatched 800 | -10/Mines | A large section of the Mines collapsed 804 | -10/Mines | Core integrity fell below 50% 931 | -10/Mines | Build established: Scavenger-Mutant 1050 | -10/Mines | Excavation squad dispatched 1115 | -10/Mines | Core integrity fell below 20% 1280 | -10/Mines | Learned 2 Materials zone layouts 1300 | -10/Mines | Excavation squad dispatched 1326 | -10/Mines | Destroyed by G-34 Mercenary with Small Laser Last Messages --------------- K-01 Serf collects debris. S-10 Pest destroyed. K-01 Serf collects debris. Acquired 23 matter. Acquired 12 matter. Acquired 1 matter. Dropped Aluminum Leg. Acquired Lgt. Assault Rifle. System corrupted: Component data lost. Dropped Lgt. Ion Engine. Acquired Lgt. Ion Engine. Acquired derelict log, extracted data. Data stored: Materials zone layouts (x2). ALERT: Derelict activity in mines confirmed. Dispatching additional escorted excavation squad. T-07 Excavator sends out distress signal. Slammed into G-34 Mercenary. Destabilizing: System corrupted (+1). Slammed into G-34 Mercenary. T-07 Excavator destroyed. Map ----- +----------------------------------------------------+ | ##?????????????? ##??#######??????????? | | """ #??????????????? ### ??????????? | | """ #??????????????? ??????????? | | ## """ ##??????????????# ? ??????????? | | ??# % ####???????????# ? #??????????? | | ??#= # ##??????????# ?? #??????????? | | ###%!### #??????????# #??? ???????????? | | * #?## #######????# #???? #??????????? | | % #??# ==#???## #???? #??????????? | | % ####??## *%#?### ###### #??????????? | | #??????###########=### #???????????? | | #???????????????## ###?????????? | | #???????????????# ##### #?????????? | | ###???????????????# ##### ##???# #?????????? | | ?????????????????# ##???####????#### #?????????? | | ??????????????? #???????????????# #?????????? | | ????????????? #???????????????# #?????????? | | ??????????? #??????????####?# ##????????? | | ?????????? ##???????#### ### ##???????? | | ?????????# #????????## #???????? | | ????????? ##????????## #???????? | | ????????? ####?????????##gg #######?? | | ?????????####????????????## ## | | ?????????????####???????##g #### ### ###### | | ????????????? ###!%g#### ##?# #???????? | | ????????????????" """ t*@!g ## #### #???????? | | ????????????????" """g#### t #???????? | | ????????????????? ""?????## t #### #???????? | | ??????????????????????????## ##??# ???????? | | ???????????????????????????# ##???# ???????? | | ??????????????????????????# ##????## ???????? | | ##?????????????????????????## ##??????? ??????? | | ????????????????????????????####????????# ??????? | | ?????????????????????????????????????????##??????? | | ?????????????????????????????????????????????????? | | ?????????????????????????????????????????????????? | | ?????????????????????????????????????????????????? | | ?????????????????????????????????????????????????? | | | | | | | | | | | | | | | | | | | | | | | | | +----------------------------------------------------+ Best States ------------- Heat Dissipation 25 Energy Generation 10 Energy Capacity 250 Matter Stores 300 Matter Capacity 300 Sight Range 16 Terrain Scan Density 10 Evasion (%) 53 Item Schematics ----------------- None Robot Schematics ------------------ None Fabricated ------------ Nothing Alien Tech Used ----------------- None Achievements -------------- None Challenges ------------ None Game ------ Seed TerrabombVariableManipulator Manual? 0 Play Time 00:16:46 Cumulative 13.3 hours Start 2020.07.09 @ 03:51:47 End 2020.07.09 @ 04:09:44 Sessions 1 Manual Loads 0 Difficulty Rogue Special Mode None Game No. 9 Rogue 9 Adventurer 0 Explorer 0 Win Type - Total 0 Types 0/0/0/0/0/0/0 Lore% 17 Gallery% 25 Achievement% 20 Wizard Run 0 Options --------- ASCII 0 Keyboard 0 Movement Numpad Keybinds 0 Fullscreen 2 Font 18/TerminusBold Map View 76x50 Tactical HUD 0 Map Filters NONE Filters NONE Steam 1 RUN: 697b701c-dc38-4765-b635-4ad3447db4a5